bitfinex-derivatives/quotes_ETHF0:USTF0_20240829
["timestamp","ask_amount","ask_price","bid_price","bid_amount"]
[1724947401343,10.19656065,2579.9,2579.8,9.93e-06]
[1724947401743,11.16525065,2579.9,2579.8,9.93e-06]
[1724947401943,8.28305065,2579.9,2579.8,9.93e-06]
[1724947402351,18.15905065,2579.9,2579.8,9.93e-06]
[1724947402746,19.12774065,2579.9,2579.8,9.93e-06]
[1724947405957,0.38765,2578.7,2578.6,1.01085129]
[1724947406260,3.59547,2578.7,2578.6,2.32413007]
[1724947406457,0.38767,2578.7,2578.6,2.32413007]
[1724947406753,0.38765,2578.8,2578.6,2.71180007]
[1724947406947,1.90061,2579.1,2578.8,2.32413007]
[1724947406948,0.38763,2578.9,2578.8,2.32413007]
[1724947408157,4.56449,2578.9,2578.8,2.32413007]
[1724947408354,0.38768,2578.5,2578.4,0.00581993]
[1724947408755,5.56318,2578.6,2578.4,2.32995]
[1724947408960,3.2078,2578.6,2578.5,2.71181007]
[1724947409149,0.00581993,2578.7,2578.6,0.38767]
[1724947409352,0.00581993,2578.7,2578.6,6.06180007]
[1724947409553,4.1766,2579.6,2579.1,0.38758]
[1724947409763,3.2078,2579.6,2578.9,3.35]
[1724947409955,3.2078,2579.6,2579.2,0.38756]
[1724947409956,0.38754,2579.5,2579.2,0.38756]
[1724947410166,0.38754,2579.5,2579.3,40.8]
[1724947410565,0.38754,2579.5,2579.3,41.18756]
[1724947411066,3.2078,2579.6,2579.3,40.8]
[1724947411458,0.38755,2579.4,2579.3,40.8]
[1724947411769,0.96888,2579.4,2579.0,1.9712]
[1724947411972,0.38759,2579.1,2579.0,1.9712]
[1724947412474,0.38759,2579.1,2579.0,42.7712]
[1724947412769,0.38759,2579.1,2579.0,1.9712]
[1724947412963,0.38759,2579.2,2579.0,1.9712]
[1724947413164,0.38759,2579.2,2579.0,2.3588]
[1724947413564,1.33807,2579.3,2579.1,0.38759]
[1724947414470,0.38758,2579.2,2579.0,2.3588]
[1724947414779,1.33807,2579.3,2579.1,0.38759]
[1724947415568,0.38758,2579.2,2579.1,0.38759]
[1724947415873,0.38759,2579.1,2579.0,1.9712]
[1724947418280,1.35658,2579.1,2579.0,1.9712]
[1724947419070,0.38762,2578.9,2578.8,44.0078]
[1724947419277,0.38762,2578.9,2578.8,44.39544]
[1724947419471,0.38761,2579.0,2578.8,44.30774]
[1724947419971,0.96899,2579.1,2578.8,43.9201]
[1724947419972,0.38762,2578.9,2578.8,43.9201]
[1724947420173,0.38762,2578.9,2578.8,3.1201]
[1724947421281,0.38762,2578.9,2578.8,3.50774]
[1724947421676,0.38762,2578.9,2578.7,43.11534]
[1724947421980,0.38764,2578.8,2578.7,43.11534]
[1724947422776,0.38763,2578.9,2578.8,0.38764]
[1724947423272,0.38763,2578.9,2578.8,0.38763]
[1724947423474,0.38763,2578.9,2578.8,0.38764]
[1724947424584,0.38762,2579.0,2578.9,0.38762]
[1724947425484,0.38761,2579.0,2578.9,0.38761]
[1724947425782,0.3876,2579.1,2579.0,0.3876]
[1724947426181,0.38761,2579.0,2578.9,0.38761]
[1724947426380,0.3876,2579.1,2579.0,0.3876]
[1724947426785,0.96889,2579.4,2578.8,3.2078]
[1724947427080,5.06401,2579.6,2578.8,4.17689]
[1724947427282,0.38756,2579.4,2579.2,0.38757]
[1724947427491,0.38756,2579.4,2579.3,1.8017]
[1724947427782,0.38755,2579.4,2579.3,1.8017]
[1724947430078,0.38755,2579.4,2579.3,0.8962]
[1724947430277,0.38755,2579.4,2579.0,0.3876]
[1724947430278,0.96894,2579.3,2578.9,0.9006]
[1724947430579,0.38758,2579.2,2579.1,0.952]
[1724947431082,0.38761,2579.0,2578.9,0.9006]
[1724947431393,0.38761,2579.0,2578.9,1.8526]
[1724947431589,0.38761,2579.0,2578.6,2.48785783]
[1724947431590,0.38763,2578.9,2578.6,1.35936]
[1724947431782,0.38763,2578.9,2578.7,2.24025]
[1724947432488,5.0797,2579.1,2578.8,0.38763]
[1724947432489,0.38761,2579.0,2578.8,0.38763]
[1724947432988,0.38762,2579.0,2578.8,0.38763]
[1724947433879,0.38762,2578.9,2578.7,2.24024]
[1724947434078,0.38764,2578.8,2578.7,1.8526]
[1724947434788,0.38767,2578.6,2578.5,7.41]
[1724947434993,0.38767,2578.6,2578.5,8.3502]
[1724947435489,0.38766,2578.7,2578.5,12.61628]
[1724947435684,0.38766,2578.7,2578.6,0.38767]
[1724947435991,0.38767,2578.6,2578.5,8.73787]
[1724947436389,0.38767,2578.6,2578.5,12.61627]
[1724947436584,0.38766,2578.7,2578.6,0.38766]
[1724947439183,0.38765,2578.8,2578.7,0.38765]
[1724947439584,6.02171,2579.1,2578.7,3.8776]
[1724947439585,0.9029,2579.1,2578.7,3.8776]
[1724947439781,0.38763,2578.9,2578.8,1.32342]
[1724947441397,1.88486,2579.2,2578.8,4.8134]
[1724947441595,1.88877,2579.4,2578.9,4.36085129]
[1724947441596,0.9157,2579.4,2578.9,4.36085129]
[1724947441790,3.59532,2579.7,2579.6,0.38752]
[1724947441984,0.38749,2579.8,2579.7,0.3875]
[1724947442384,1.30318,2579.9,2579.6,1.01085129]
[1724947442584,0.38744,2580.2,2580.0,0.38745]
[1724947442796,4.17636,2580.3,2579.8,1.01085129]
[1724947442797,3.2078,2580.3,2580.1,0.9081]
[1724947442991,3.59522,2580.3,2580.1,41.7081]
[1724947443384,3.2078,2580.3,2580.1,0.9081]
[1724947443585,3.2078,2580.3,2580.2,0.38743]
[1724947443785,0.38737,2580.6,2580.3,0.3874]
[1724947443998,0.38737,2580.6,2580.3,0.38741]
[1724947444195,4.45651194,2580.6,2580.3,0.38741]
[1724947444400,0.38737,2580.6,2580.3,0.38741]
[1724947444597,0.38737,2580.6,2580.2,40.8]
[1724947444791,0.38737,2580.6,2580.3,0.38741]
[1724947445599,0.38736,2580.7,2580.4,0.38739]
[1724947446193,0.38736,2580.7,2580.3,0.3874]
[1724947446393,0.38736,2580.7,2580.4,0.38739]
[1724947446595,0.9157,2580.8,2580.2,40.8]
[1724947446596,0.38737,2580.6,2580.3,0.3874]
[1724947446797,0.9157,2580.8,2580.2,41.18742]
[1724947446798,0.38738,2580.5,2580.2,41.18742]
[1724947448294,0.3874,2580.4,2580.2,41.18742]
[1724947448699,8.68790827,2580.7,2580.2,40.8]
[1724947448904,0.38744,2580.1,2580.0,3.2078]
[1724947449100,0.38747,2579.9,2579.8,0.92431993]
[1724947449302,0.38747,2579.9,2579.8,0.00581993]
[1724947450408,1.35616,2579.9,2579.8,0.00581993]
[1724947450601,12.80099384,2579.9,2579.8,0.00581993]
[1724947450799,17.11968384,2579.9,2579.8,0.00581993]
[1724947451606,0.96885,2579.5,2579.1,3.2078]
[1724947451809,4.31885,2579.5,2579.1,3.2078]
[1724947452010,0.38762,2578.9,2578.8,0.9466]
[1724947452208,0.38762,2578.9,2578.7,45.01865129]
[1724947452209,0.38762,2578.9,2578.5,1.01085129]
[1724947452509,0.38765,2578.7,2578.5,0.9466]
[1724947452710,0.38766,2578.7,2578.5,0.9466]
[1724947453014,0.38764,2578.8,2578.5,1.33428]
[1724947453208,0.38764,2578.8,2578.5,0.9466]
[1724947453407,0.38765,2578.7,2578.4,0.00581993]
[1724947453614,4.24379226,2578.7,2578.4,0.00581993]
[1724947453809,0.38768,2578.5,2578.4,0.00581993]
[1724947455302,13.06171026,2578.5,2578.4,0.00581993]
[1724947455615,8.74250026,2578.5,2578.4,0.00581993]
[1724947455815,3.2078,2578.6,2578.4,0.00581993]
[1724947456117,3.59547,2578.6,2578.4,0.00581993]
[1724947456319,0.38768,2578.5,2578.4,0.00581993]
[1724947457804,3.59548,2578.6,2578.4,0.00581993]
[1724947458015,3.2078,2578.6,2578.5,0.38768]
[1724947459116,2.30133,2578.9,2578.4,1.79601993]
[1724947459418,0.38762,2578.9,2578.7,0.38764]
[1724947460017,0.00581993,2579.0,2578.7,3.8776]
[1724947460220,0.00581993,2579.0,2578.9,0.38762]
[1724947460714,0.00581993,2579.0,2578.8,0.38763]
[1724947460908,0.39342993,2579.0,2578.8,0.38764]
[1724947461114,0.00581993,2579.0,2578.9,0.38762]
[1724947461310,0.39342993,2579.0,2578.8,0.38763]
[1724947462115,0.38762,2578.9,2578.8,0.38763]
[1724947462313,0.00581993,2579.0,2578.8,0.38763]
[1724947462509,0.00581993,2579.0,2578.9,0.38762]
[1724947462721,0.00581993,2579.0,2578.9,3.59542]
[1724947462913,0.00581993,2579.0,2578.9,4.26522]
[1724947463317,0.00581993,2579.0,2578.9,0.38762]
[1724947463512,0.00581993,2579.0,2578.9,4.26522]
[1724947465519,0.39343993,2579.0,2578.8,0.38763]
[1724947466017,0.96896,2579.2,2578.8,0.38763]
[1724947466411,7.52665,2579.5,2578.6,6.5578]
[1724947466412,6.5578,2579.5,2578.6,6.5578]
[1724947466613,0.38755,2579.4,2579.2,0.38756]
[1724947467024,0.38756,2579.3,2579.2,0.38756]
[1724947467609,0.38756,2579.3,2579.1,0.38758]
[1724947467816,0.38755,2579.4,2579.2,0.38757]
[1724947468119,0.96881,2579.6,2579.2,0.38757]
[1724947468319,0.38756,2579.3,2579.2,0.38757]
[1724947468521,0.38754,2579.5,2579.3,0.38755]
[1724947468824,1.84595,2579.8,2579.1,2.74607]
[1724947469125,0.38755,2579.4,2579.1,1.7771]
[1724947469614,0.96881,2579.6,2579.1,1.7771]
[1724947469821,0.96881,2579.6,2579.2,0.38756]
[1724947470120,0.38755,2579.4,2579.3,0.38756]
[1724947470623,0.38756,2579.3,2579.2,0.38757]
[1724947470814,0.38758,2579.2,2579.1,1.7771]
[1724947471022,0.38757,2579.3,2579.2,0.38757]
[1724947471223,0.38757,2579.3,2579.1,2.16468]
[1724947471419,0.38757,2579.3,2579.2,0.38758]
[1724947471726,0.96888,2579.4,2579.0,3.2078]
[1724947471918,3.35,2579.7,2578.9,4.107]
[1724947471919,0.38761,2579.0,2578.9,4.107]
[1724947473029,0.38761,2579.0,2578.9,4.49462]
[1724947473220,0.3876,2579.1,2579.0,0.38761]
[1724947473424,0.38761,2579.0,2578.9,4.49461]
[1724947473725,1.88174,2579.3,2578.9,4.107]
[1724947473935,0.38759,2579.2,2579.1,0.38759]
[1724947474629,0.38756,2579.3,2579.2,0.38758]
[1724947474826,0.38758,2579.2,2579.1,0.38758]
[1724947475329,0.38757,2579.3,2579.1,0.38758]
[1724947475520,0.38757,2579.3,2579.2,0.38758]
[1724947475721,0.38757,2579.3,2579.1,0.38758]
[1724947476227,0.38758,2579.2,2579.1,0.38758]
[1724947476426,0.38757,2579.3,2579.1,0.38758]
[1724947476727,0.38757,2579.3,2578.9,4.107]
[1724947476932,0.38757,2579.3,2579.1,0.38758]
[1724947477328,0.96891,2579.3,2578.9,4.107]
[1724947477527,0.96891,2579.3,2578.9,4.49461]
[1724947477829,0.3876,2579.1,2578.9,4.49461]
[1724947478132,0.3876,2579.1,2579.0,0.38761]
[1724947478320,3.2078,2579.5,2579.0,6.5578]
[1724947478633,3.2078,2579.5,2579.4,0.38755]
[1724947479427,0.38746,2580.1,2579.9,0.38746]
[1724947479630,0.38746,2580.1,2580.0,40.8]
[1724947479631,0.38745,2580.1,2580.0,40.8]
[1724947480028,3.59522,2580.3,2580.2,0.38743]
[1724947480223,3.59522,2580.3,2580.0,40.8]
[1724947480224,0.38738,2580.6,2580.4,0.38739]
[1724947480426,0.38738,2580.6,2580.5,0.38738]
[1724947480632,0.38738,2580.6,2580.4,0.38739]
[1724947480633,0.38737,2580.6,2580.4,0.38739]
[1724947480933,0.9111,2580.7,2580.3,0.3874]
[1724947481241,0.38743,2580.2,2580.1,0.8483]
[1724947481530,0.38734,2580.8,2580.5,0.38738]
[1724947481735,3.2078,2580.9,2580.3,3.35]
[1724947481925,3.59512,2580.9,2580.3,4.2853]
[1724947482121,1.35569,2580.8,2580.3,4.2853]
[1724947482320,4.43518063,2580.8,2580.3,1.32271]
[1724947482529,0.38738,2580.6,2580.3,1.32271]
[1724947482832,5.37198063,2580.8,2580.3,0.9353]
[1724947482833,0.38736,2580.7,2580.3,0.9353]
[1724947483031,5.37199063,2580.8,2580.5,0.38737]
[1724947483430,5.37199063,2580.8,2580.6,0.38737]
[1724947483637,4.98464063,2580.8,2580.6,0.38737]
[1724947483831,0.38725,2581.5,2581.2,0.38727]
[1724947484035,3.2078,2581.6,2581.3,0.38726]
[1724947484224,4.03480339,2581.5,2581.3,0.38725]
[1724947484730,4.03480339,2581.5,2581.4,0.38725]
[1724947484925,4.03480339,2581.5,2581.2,3.35]
[1724947485131,4.03480339,2581.5,2581.3,0.38725]
[1724947485328,4.03480339,2581.5,2581.4,0.38725]
[1724947485628,4.03480339,2581.5,2581.3,0.38725]
[1724947485836,4.42203339,2581.5,2581.3,0.38725]
[1724947486039,4.42203339,2581.5,2581.2,3.73727]
[1724947486333,4.42203339,2581.5,2581.3,40.8]
[1724947486929,4.03480339,2581.5,2581.3,40.8]
[1724947487129,4.9126,2582.8,2581.4,15.68551]
[1724947487329,4.9126,2582.8,2582.3,3.35]
[1724947487533,4.05882377,2582.5,2582.3,3.7371]
[1724947487726,0.38709,2582.5,2582.3,3.35]
[1724947487932,0.38707,2582.6,2582.3,3.35]
[1724947488230,4.44744069,2582.5,2582.3,3.35]
[1724947488539,0.3871,2582.4,2582.3,3.35]
[1724947488743,11.52724069,2582.5,2581.8,3.35580855]
[1724947488941,0.3871,2582.4,2582.0,3.73715]
[1724947489134,4.27352181,2582.4,2582.0,3.35]
[1724947489339,4.27352181,2582.4,2582.1,0.38713]
[1724947489639,4.27352181,2582.7,2582.0,3.35]
[1724947489934,4.32383331,2582.4,2582.3,0.3871]
[1724947490138,4.71088331,2582.7,2582.3,0.3871]
[1724947490329,0.38705,2582.7,2582.3,0.3871]
[1724947490531,4.32383331,2582.6,2582.3,0.3871]
[1724947490738,0.38709,2582.5,2582.1,4.84713]
[1724947490934,4.32383331,2582.6,2581.9,3.2078]
[1724947491235,0.38716,2582.0,2581.8,0.00580855]
[1724947491733,0.96767,2582.7,2581.9,7.6678]
[1724947491734,4.17547,2582.7,2581.9,7.6678]
[1724947492036,4.20506911,2582.2,2581.9,7.6678]
[1724947492238,4.20506911,2582.2,2582.1,0.38714]
[1724947492437,0.38709,2582.5,2582.1,0.38714]
[1724947492941,4.18741245,2582.4,2582.3,4.46]
[1724947493238,4.18741245,2582.6,2582.0,5.3386]
[1724947493435,3.2078,2582.5,2581.9,7.2438]
[1724947493739,0.05762372,2582.4,2581.9,3.2078]
[1724947493938,0.05762372,2582.4,2582.1,4.46]
[1724947494136,0.38709,2582.5,2582.2,0.38712]
[1724947494437,0.3871,2582.4,2582.1,4.46]
[1724947494634,4.24820245,2582.4,2582.1,4.46]
[1724947494839,4.63530245,2582.4,2582.1,4.46]
[1724947495039,0.38711,2582.3,2582.1,4.46]
[1724947495234,0.38713,2582.2,2582.1,4.46]
[1724947495837,0.38713,2582.2,2581.9,3.2078]
[1724947496341,0.38712,2582.3,2582.0,0.38715]
[1724947496640,4.28906424,2582.2,2582.0,0.38715]
[1724947496837,4.28906424,2582.2,2581.9,3.59496]
[1724947498336,0.38708,2582.5,2582.2,0.38712]
[1724947498541,0.38712,2582.3,2582.1,4.46]
[1724947498744,4.99451481,2582.4,2581.9,3.2078]
[1724947498947,4.29253405,2582.2,2581.9,3.2078]
[1724947499141,1.24531,2582.4,2582.1,0.38714]
[1724947499938,0.38712,2582.3,2582.0,0.38715]
[1724947500144,0.38712,2582.3,2582.1,0.38714]
[1724947500437,0.8582,2582.4,2581.9,3.2078]
[1724947500643,1.35511,2581.9,2581.8,0.00580855]
[1724947500846,5.53085,2581.9,2581.8,0.00580855]
[1724947501037,19.27602586,2581.9,2581.8,0.00580855]
[1724947501239,20.15852586,2581.9,2581.8,0.00580855]
[1724947502130,11.34014586,2581.9,2581.8,0.00580855]
[1724947502348,4.25954586,2581.9,2581.8,0.00580855]
[1724947502640,3.87237586,2581.9,2581.8,0.39299855]
[1724947502842,0.8792,2582.3,2581.8,8.72579855]
[1724947503047,0.8792,2582.3,2581.8,7.67360855]
[1724947503242,1.26632,2582.3,2582.0,0.38715]
[1724947503438,0.8582,2582.4,2581.8,8.64155855]
[1724947503638,0.8582,2582.4,2582.2,0.38712]
[1724947503849,1.2453,2582.4,2582.1,0.38713]
[1724947504145,0.38713,2582.2,2581.9,0.38716]
[1724947504340,5.38348397,2582.3,2581.8,4.46580855]
[1724947504537,0.38716,2582.0,2581.8,0.00580855]
[1724947504740,4.80283397,2582.1,2581.8,0.00580855]
[1724947505048,3.93232019,2581.9,2581.8,0.39299855]
[1724947505252,0.38713,2582.2,2581.9,0.38717]
[1724947505442,4.56926235,2582.3,2582.0,0.38716]
[1724947505644,0.8582,2582.4,2581.9,7.6678]
[1724947505854,3.59489,2582.5,2582.2,0.38712]
[1724947506535,3.2078,2582.5,2581.9,7.6678]
[1724947506739,0.38711,2582.3,2582.0,0.38715]
[1724947506939,0.38715,2582.1,2581.9,7.6678]
[1724947507139,0.38716,2582.0,2581.9,7.6678]
[1724947507349,0.38716,2582.0,2581.9,3.2078]
[1724947507740,0.96784,2582.2,2581.9,3.2078]
[1724947507741,3.2078,2582.5,2582.0,0.38715]
[1724947507938,3.2078,2582.5,2581.9,48.4678]
[1724947508138,3.59489,2582.5,2582.2,0.38712]
[1724947508543,3.2078,2582.5,2582.3,0.38711]
[1724947508742,3.2078,2582.5,2582.2,4.46]
[1724947509143,3.2078,2582.5,2582.3,0.38711]
[1724947509348,3.2078,2582.8,2582.3,0.96779]
[1724947509549,3.2078,2582.8,2582.6,0.38706]
[1724947509848,4.15689548,2582.7,2582.6,0.38706]
[1724947510054,4.15689548,2582.7,2582.5,4.46]
[1724947510444,4.15689548,2582.7,2582.6,0.38707]
[1724947510645,4.15689548,2582.7,2582.5,4.46]
[1724947510844,4.15689548,2582.7,2582.5,4.84707]
[1724947511148,4.15689548,2582.7,2582.6,0.38707]
[1724947511944,4.15689548,2582.7,2582.6,3.72707]
[1724947512852,0.18527503,2583.4,2583.3,0.38696]
[1724947513046,3.2078,2583.8,2583.3,3.34]
[1724947513047,0.38694,2583.5,2583.3,3.34]
[1724947513347,5.20335858,2583.7,2583.3,3.72696]
[1724947513545,0.38693,2583.6,2583.4,40.8]
[1724947513748,0.38693,2583.5,2583.4,40.8]
[1724947513945,4.09764917,2583.5,2583.3,0.38695]
[1724947514344,0.38695,2583.4,2583.1,3.73278855]
[1724947514652,4.09764917,2583.5,2583.1,3.73278855]
[1724947514653,0.38696,2583.3,2583.2,40.8]
[1724947515047,8.53961633,2583.3,2583.1,3.34580855]
[1724947515353,0.38697,2583.3,2583.1,3.34580855]
[1724947515651,4.28145633,2583.2,2583.1,3.73279855]
[1724947515855,3.2078,2583.5,2583.4,0.38695]
[1724947516040,3.2078,2583.5,2583.4,3.72695]
[1724947517255,3.2078,2583.5,2583.4,44.52695]
[1724947517646,1.2414,2583.7,2583.4,44.14]
[1724947517849,0.38695,2583.4,2583.2,3.72697]
[1724947518452,4.06372465,2583.6,2583.4,0.38694]
[1724947518644,4.45064465,2583.6,2583.4,3.72694]
[1724947518844,4.45064465,2583.6,2583.4,3.34]
[1724947518845,0.38693,2583.5,2583.4,3.34]
[1724947519049,4.45065465,2583.6,2583.4,3.34]
[1724947519249,4.06372465,2583.6,2583.4,3.34]
[1724947519456,4.45065465,2583.6,2583.4,3.34]
[1724947520048,4.06372465,2583.6,2583.4,3.72694]
[1724947520248,4.06372465,2583.6,2583.5,0.38693]
[1724947520555,4.45064465,2583.6,2583.4,3.72694]
[1724947520750,0.38693,2583.5,2583.4,3.34]
[1724947521656,0.38696,2583.3,2583.2,3.34]
[1724947522050,4.0709038,2583.3,2583.2,3.34]
[1724947522250,0.8295,2583.4,2583.2,3.34]
[1724947522446,0.38696,2583.3,2583.2,3.34]
[1724947522652,1.21645,2583.4,2583.2,3.34]
[1724947522854,1.21646,2583.4,2583.2,3.34]
[1724947523052,0.38696,2583.3,2583.2,3.34]
[1724947523744,0.38698,2583.2,2583.1,0.00580855]
[1724947523945,4.56223,2583.2,2583.1,0.00580855]
[1724947524148,0.38704,2582.8,2582.7,4.107]
[1724947524354,0.38705,2582.7,2582.6,3.34]
[1724947524653,0.96752,2583.0,2582.6,3.72706]
[1724947524654,4.07426447,2582.8,2582.6,3.72706]
[1724947524847,4.07426447,2583.0,2582.7,0.38705]
[1724947525051,0.91627061,2583.1,2582.9,3.34]
[1724947525247,0.00577061,2583.1,2583.0,0.38701]
[1724947525453,0.00577061,2583.1,2583.0,4.25821]
[1724947526149,0.0021436,2583.1,2582.9,3.34]
[1724947526352,4.87774617,2583.1,2582.9,3.34]
[1724947526748,0.3891436,2583.1,2582.9,3.34]
[1724947527450,0.0021436,2583.1,2582.9,3.34]
[1724947527961,0.0021436,2583.1,2583.0,0.38701]
[1724947528154,0.0021436,2583.1,2583.0,4.25821]
[1724947529454,0.00053086,2583.1,2583.0,4.25821]
[1724947529856,0.00053086,2583.1,2583.0,45.05821]
[1724947531354,0.00053086,2583.1,2583.0,40.8]
[1724947531555,0.00053086,2583.1,2583.0,45.05821]
[1724947531754,0.00053086,2583.1,2583.0,44.6712]
[1724947531959,0.38701,2583.0,2582.9,3.34]
[1724947532156,2.16411,2583.0,2582.9,3.34]
[1724947533362,2.16411,2583.0,2582.9,3.72702]
[1724947533363,0.891,2583.0,2582.9,3.72702]
[1724947533664,0.00053086,2583.1,2583.0,0.38701]
[1724947534053,0.00053086,2583.1,2583.0,4.25821]
[1724947534855,0.00053086,2583.1,2582.9,3.34]
[1724947535158,0.38701,2583.0,2582.9,3.34]
[1724947535362,0.9116,2583.0,2582.9,3.34]
[1724947535558,0.9116,2583.0,2582.9,3.72702]
[1724947535955,1.29861,2583.0,2582.9,3.34]
[1724947536860,3.16523,2583.0,2582.9,3.34]
[1724947537360,2.19771,2583.0,2582.9,3.34]
[1724947537956,1.8107,2583.0,2582.9,3.72702]
[1724947538573,0.9116,2583.0,2582.9,7.59822]
[1724947538771,0.00053086,2583.1,2583.0,0.38701]
[1724947539268,0.00053086,2583.1,2583.0,4.25821]
[1724947540454,0.00053086,2583.1,2583.0,5.22573]
[1724947541254,0.38752086,2583.1,2583.0,4.25821]
[1724947541454,0.38752086,2583.1,2583.0,0.38701]
[1724947541650,0.00053086,2583.1,2583.0,0.38701]
[1724947542666,0.00053086,2583.1,2583.0,4.25821]
[1724947543558,0.00053086,2583.1,2583.0,5.22573]
[1724947544656,3.2078,2584.5,2583.0,15.14623]
[1724947544974,0.8808,2584.2,2584.1,0.38684]
[1724947545472,0.8808,2584.2,2584.1,41.18684]
[1724947547472,0.8808,2584.2,2584.1,42.15395]
[1724947547867,0.8989,2584.5,2584.4,0.3868]
[1724947548067,0.957,2584.7,2584.6,0.38677]
[1724947548661,0.38672,2585.0,2584.7,0.38674]
[1724947548982,5.38892121,2584.9,2584.8,3.34]
[1724947549364,0.957,2584.9,2584.8,3.34]
[1724947549563,1.34372,2584.9,2584.8,3.34]
[1724947550174,4.55152,2584.9,2584.8,3.34]
[1724947550369,0.38677,2584.7,2584.6,3.34]
[1724947550874,4.61192076,2584.7,2584.6,3.34]
[1724947551071,0.957,2584.9,2584.6,3.34]
[1724947551271,0.957,2584.9,2584.8,3.34]
[1724947551468,1.34372,2584.9,2584.8,3.34]
[1724947551668,0.957,2584.9,2584.8,3.34]
[1724947551859,1.34372,2584.9,2584.8,3.34]
[1724947552263,0.38675,2584.7,2584.5,3.72678]
[1724947552570,0.38675,2584.7,2584.5,3.34]
[1724947553070,0.38674,2584.8,2584.5,3.34]
[1724947553273,5.17783108,2584.9,2584.7,3.72674]
[1724947553464,5.17783108,2584.9,2584.8,0.38674]
[1724947553465,0.957,2584.9,2584.8,0.38674]
[1724947554366,0.38674,2584.8,2584.7,3.34]
[1724947554562,0.38677,2584.6,2584.1,40.8]
[1724947554773,0.38681,2584.4,2584.2,3.34]
[1724947554975,0.8891,2584.3,2584.2,3.34]
[1724947555369,0.8891,2584.3,2584.2,3.72683]
[1724947557378,0.8951,2584.5,2584.4,0.3868]
[1724947557571,0.9763,2584.6,2584.5,0.38678]
[1724947558476,1.36307,2584.6,2584.4,3.72679]
[1724947558677,0.38678,2584.5,2584.4,3.34]
[1724947559267,0.9763,2584.6,2584.5,0.38678]
[1724947560172,0.38678,2584.5,2584.4,3.34]
[1724947560474,1.31838,2584.5,2584.4,3.34]
[1724947560875,0.9316,2584.5,2584.4,3.34]
[1724947561478,0.9316,2584.5,2584.4,3.7268]
[1724947561880,0.9763,2584.6,2584.5,0.38678]
[1724947562280,0.38678,2584.5,2584.4,3.34]
[1724947562877,1.36308,2584.6,2584.4,3.72679]
[1724947563077,0.9763,2584.6,2584.5,0.38678]
[1724947563284,0.9249,2584.8,2584.7,0.38675]
[1724947563480,0.9249,2584.8,2584.7,3.72675]
[1724947563991,0.9609,2584.9,2584.8,0.38674]
[1724947564484,0.9225,2585.3,2585.2,0.38668]
[1724947564684,0.9225,2585.3,2585.2,3.72668]
[1724947565184,0.9225,2585.3,2585.0,44.14]
[1724947565185,0.38669,2585.1,2585.0,44.14]
[1724947565790,8.37319783,2585.1,2585.0,44.14]
[1724947566285,7.98650783,2585.1,2585.0,3.34]
[1724947566484,8.37319783,2585.1,2585.0,3.34]
[1724947566986,0.38668,2585.2,2585.0,3.72671]
[1724947567380,0.38669,2585.1,2585.0,3.34]
[1724947567893,4.69204768,2585.2,2585.0,3.72671]
[1724947568190,0.38669,2585.1,2585.0,3.34]
[1724947568890,0.38669,2585.1,2584.6,3.2078]
[1724947568891,1.35353,2584.9,2584.8,3.34]
[1724947569079,0.38672,2584.9,2584.8,3.34]
[1724947570484,0.38671,2585.0,2584.8,3.34]
[1724947570686,1.88917,2585.3,2584.8,3.34]
[1724947570886,0.9225,2585.3,2585.0,3.34]
[1724947571087,4.62464208,2585.2,2585.0,3.7267]
[1724947571294,0.38669,2585.1,2585.0,3.34]
[1724947571497,0.38669,2585.1,2584.8,3.34]
[1724947571498,0.38672,2584.9,2584.8,3.34]
[1724947571891,4.62468208,2584.9,2584.8,3.34]
[1724947572493,4.23796208,2584.9,2584.8,3.72674]
[1724947572789,3.59449,2585.2,2584.9,0.38672]
[1724947572988,3.2078,2585.2,2585.0,3.34]
[1724947573595,3.2078,2585.2,2585.0,3.7267]
[1724947573793,0.38669,2585.1,2585.0,3.34]
[1724947574886,0.38669,2585.1,2584.7,0.38674]
[1724947574887,1.35353,2584.9,2584.8,3.34]
[1724947575094,3.59452,2584.9,2584.8,3.34]
[1724947575399,7.90976629,2584.9,2584.8,3.34]
[1724947575696,8.87657629,2584.9,2584.8,3.34]
[1724947576693,5.66877629,2584.9,2584.8,3.34]
[1724947577195,5.66877629,2584.9,2584.5,3.2078]
[1724947577196,11.39184629,2584.9,2584.5,3.2078]
[1724947577395,0.38684,2584.2,2584.1,3.34]
[1724947577595,0.38686,2584.0,2583.9,3.34580855]
[1724947577897,4.0964796,2584.3,2583.9,44.14580855]
[1724947578088,4.0964796,2584.3,2584.1,3.34]
[1724947578089,4.4832996,2584.3,2584.1,3.34]
[1724947578392,0.38682,2584.3,2584.1,3.34]
[1724947578593,4.10660406,2584.2,2584.1,3.34]
[1724947579195,4.10660406,2584.2,2584.1,3.72684]
[1724947579897,0.9238,2584.4,2584.2,0.38682]
[1724947580097,0.9238,2584.4,2584.3,0.38681]
[1724947580496,0.9238,2584.4,2584.2,0.38682]
[1724947580695,0.9238,2584.4,2584.3,0.38681]
[1724947580895,0.9238,2584.4,2584.2,0.38682]
[1724947581293,0.38681,2584.3,2584.1,3.72683]
[1724947581489,0.38681,2584.3,2584.1,3.34]
[1724947581689,5.08124378,2584.3,2584.1,3.34]
[1724947581886,5.08124378,2584.3,2583.9,0.00580855]
[1724947581887,1.35401,2584.0,2583.9,0.00580855]
[1724947582091,0.38686,2584.0,2583.9,0.00580855]
[1724947583091,8.53074963,2584.0,2583.9,0.00580855]
[1724947583300,15.49789963,2584.0,2583.9,0.00580855]